Cogmind - Beta 13 *** ADVENTURER MODE // 2024.04.03 @ 18:30:41 Player: Plonker Result: Destroyed by H-66 Slayer with Gauss Rifle Performance ------------- Evolutions (1) 500 Regions Visited (5) 1000 Robots Destroyed (14) 70 Value Destroyed (411) 411 Prototype IDs (3) 60 Alien Tech Used (0) 0 Bonus (811) 811 TOTAL SCORE: 2852 Bonus ------- Pacifist 200 High Alert Combat Kills 11 Met Imprinter 300 Was Imprinted 300 Cogmind --------- Core Integrity 0/400 Matter 300/300 Energy 63/100 System Corruption 0% Temperature Cool (2) Movement Treading (160) Location -6/Proximity Caves Parts ------- > --- POWER (1) -------- (None) > --- PROPULSION (2) --- Spiked Medium Treads > --- UTILITY (4) ------ Makeshift Hacking Suite Recalibrator > --- WEAPON (2) ------- (None) > --- INVENTORY (5) ---- Self-destruct Interrupter (50) Self-destruct Interrupter (50) Peak State ------------ > --- POWER ------------ Light Ion Engine > --- PROPULSION ------- Makeshift Flight Unit Makeshift Flight Unit > --- UTILITY ---------- Makeshift Salvage Targeting Computer Improved Targeting Computer Makeshift Light Armor Plating Makeshift Hacking Suite > --- WEAPON ----------- Beam Rifle Advanced Beam Cannon > --- INVENTORY -------- Self-destruct Interrupter Self-destruct Interrupter [Rating: 29] Favorites ----------- Power Light Ion Engine Engine Light Ion Engine Propulsion Makeshift Flight Unit Treads Spiked Medium Treads Wheel Wheel Hover Unit Hover Unit Flight Unit Makeshift Flight Unit Utility Small Storage Unit Device Weight Redist. System Storage Small Storage Unit Processor Improved Targeting Computer Hackware Makeshift Hacking Suite Protection Hardened Light Armor Plating Weapon Advanced Beam Cannon Energy Gun Beam Rifle Energy Cannon Advanced Beam Cannon Ballistic Gun Light Assault Rifle Launcher Grenade Launcher Build | -11 -10 -9 -9 -7 -6 ------- Run | Yrd Mat Mat Min Zio Pro Slots Evolved 2 | . . 2 . . . Power . | . . . . . . Propulsion . | . . . . . . Utility 2 | . . 2 . . . Weapon . | . . . . . . Parts Attached 25 | 5 3 7 . 8 2 Power 2 | 1 . . . 1 . Engine 2 | 1 . . . 1 . Core . | . . . . . . Reactor . | . . . . . . Propulsion 8 | 2 2 1 . 2 1 Treads 1 | . . . . . 1 Leg . | . . . . . . Wheel 2 | 2 . . . . . Hover 3 | . 2 1 . . . Flight 2 | . . . . 2 . Utility 9 | . 1 3 . 4 1 Device 2 | . . 1 . . 1 Storage 1 | . 1 . . . . Processor 2 | . . . . 2 . Hackware 1 | . . . . 1 . Protection 3 | . . 2 . 1 . Artifact . | . . . . . . Weapon 6 | 2 . 3 . 1 . Energy Gun 3 | 1 . 1 . 1 . Energy Cannon 1 | . . 1 . . . Ballistic Gun 1 | 1 . . . . . Ballistic Cannon . | . . . . . . Launcher 1 | . . 1 . . . Special Weapon . | . . . . . . Impact Weapon . | . . . . . . Slashing Weapon . | . . . . . . Piercing Weapon . | . . . . . . Special Melee Weapon . | . . . . . . Unidentified Prototypes . | . . . . . . Parts Lost 11 | . . 4 . . 7 Power 1 | . . . . . 1 Propulsion 5 | . . 3 . . 2 Utility 3 | . . . . . 3 Weapon 2 | . . 1 . . 1 Highest Loss Streak 5 | . . 2 . . 5 To Critical Strikes 1 | . . . . . 1 Average Slot Usage (%) 75 | . 78 73 . 83 51 Engine 10 | . 14 11 . 11 4 Hover 5 | . 18 14 . . . Flight 6 | . . . . 12 5 Device 5 | . . 9 . 5 1 Storage 6 | . 7 11 . 5 . Processor 7 | . . . . 11 12 Hackware 4 | . . . . 5 11 Protection 10 | . . 5 . 16 5 Energy Gun 6 | . 14 10 . 5 1 Energy Cannon 6 | . . . . 11 5 Ballistic Gun 1 | . 14 1 . . . Launcher 3 | . . 8 . . . Naked Turns . | . . . . . . Heaviest Build 25 | 5 10 25 22 22 14 Greatest Support 28 | 20 20 18 9 22 28 Greatest Overweight (x) 2 | . . 2 2 2 2 Average Overweight (x) . | . . . 2 . . Largest Inventory Capacity 8 | 5 8 8 8 8 5 Average Capacity 6 | 5 6 8 8 6 5 Most Carried 8 | 4 4 8 3 5 3 Average Carried 2 | 1 2 4 3 1 2 Final Capacity 8 | 5 8 8 8 5 5 Final Carried 3 | 1 3 3 3 2 2 Class Distribution -------------------- 60% | Mutant 31% | Derelict-Mutant 8% | Hacker-Mutant Dominant Class ---------------- Mutant | -10/Materials Mutant | -9/Materials Mutant | -9/Mines Derelict-Mutant | -7/Zion Hacker-Mutant | -6/Proximity Caves Resources | -11 -10 -9 -9 -7 -6 ----------- Run | Yrd Mat Mat Min Zio Pro Matter Collected 553 | 128 152 132 . 81 60 Remotely . | . . . . . . Salvage Created 435 | . . 358 . . 77 Parts 26 | . . 22 . . 4 Haulers Intercepted . | . . . . . . Recyclers Shooed . | . . . . . . Parts Field Recycled . | . . . . . . Retrieved Matter . | . . . . . . Parts Self-Destructed 4 | . . . . . 4 Prevented . | . . . . . . Kills | -11 -10 -9 -9 -7 -6 ------- Run | Yrd Mat Mat Min Zio Pro Combat Hostiles Destroyed 9 | . . 6 . . 3 Guns 3 | . . 3 . . . Cannons 3 | . . . . . 3 AOE 3 | . . 3 . . . Classes Destroyed 7 | . . 6 . . 1 Builder 1 | . . 1 . . . Recycler 1 | . . 1 . . . Operator 1 | . . 1 . . . Watcher 2 | . . 2 . . . Swarmer 3 | . . . . . 3 Grunt 2 | . . 2 . . . Sentry 4 | . . 4 . . . Best Kill Streak 6 | . . 6 . . 3 Combat Bots Only 3 | . . 3 . . 3 Max Kills in Single Turn 4 | . . 4 . . 1 Gunslinging . | . . . . . . Exploded 2 | . . 2 . . . Melee . | . . . . . . Uniques/NPCs Destroyed . | . . . . . . Combat | -11 -10 -9 -9 -7 -6 -------- Run | Yrd Mat Mat Min Zio Pro Hostile Shots Fired 194 | . . 105 . . 89 Missed 59 | . . 42 . . 17 Damage Taken 1490 | . . 618 . . 872 Core 405 | . . 124 . . 281 Absorbed by Shields . | . . . . . . Ignored by Resistances 446 | . . 190 . . 256 Core Remaining (%) 100 | 100 100 . . . . Volleys Fired 27 | . . 14 . . 13 Largest 2 | . . 2 . . 2 Hottest 124 | . . 86 . . 124 Shots Fired 49 | . . 28 . . 21 Gun 24 | . . 16 . . 8 Cannon 13 | . . . . . 13 Launcher 12 | . . 12 . . . Special . | . . . . . . Kinetic 2 | . . 2 . . . Thermal 35 | . . 14 . . 21 Explosive 12 | . . 12 . . . Electromagnetic . | . . . . . . Robot Hit Streak 15 | . . 15 . . 7 Robot Miss Streak 2 | . . 2 . . 2 Penetration Max . | . . . . . . Secondary Targets . | . . . . . . Shots Hit Robots 36 | . . 22 . . 14 Core Hits 26 | . . 22 . . 4 Critical Kills . | . . . . . . Critical Parts Destroyed . | . . . . . . Critical Strikes 4 | . . 3 . . 1 Burn 4 | . . 3 . . 1 Melee Attacks . | . . . . . . Impact . | . . . . . . Slashing . | . . . . . . Piercing . | . . . . . . Sneak Attacks . | . . . . . . Combat Hostiles . | . . . . . . Follow-up Attacks . | . . . . . . Damage Inflicted 888 | . . 598 . . 290 Guns 263 | . . 177 . . 86 Cannons 204 | . . . . . 204 Explosions 414 | . . 414 . . . Melee . | . . . . . . Ramming 7 | . . 7 . . . Kinetic 9 | . . 9 . . . Thermal 458 | . . 168 . . 290 Explosive 414 | . . 414 . . . Electromagnetic . | . . . . . . Impact . | . . . . . . Slashing . | . . . . . . Piercing . | . . . . . . Highest Corruption 1 | . . 1 1 1 . Average Corruption 1 | . . 1 1 1 . Corruption Purged . | . . . . . . Corruption Blocked . | . . . . . . Effects 4 | . . 4 . . . Message Errors 2 | . . 2 . . . Matter Fused 1 | . . 1 . . . Energy Discharges 1 | . . 1 . . . Overload Shots . | . . . . . . Overflow Damage . | . . . . . . Projectiles . | . . . . . . Explosions . | . . . . . . Melee . | . . . . . . Knockbacks . | . . . . . . Impact . | . . . . . . Kinetic . | . . . . . . Secondary . | . . . . . . Self-Inflicted Damage 19 | . . 19 . . . Shots 1 | . . 1 . . . Rammed 1 | . . 1 . . . Targets Rammed 1 | . . 1 . . . Kicked . | . . . . . . Crushed . | . . . . . . Highest Temperature 621 | . . 176 . . 621 Average Temperature 160 | . . 53 . . 253 Received Heat Transfer 420 | . . 420 . . . Effects 15 | . . . . . 15 Shutdowns 2 | . . . . . 2 Energy Bleed 3 | . . . . . 3 Interference 4 | . . . . . 4 Short Circuit 1 | . . . . . 1 Damage (major) 5 | . . . . . 5 Siege Activations . | . . . . . . Robots Corrupted . | . . . . . . Combat Hostiles . | . . . . . . Parts Fried . | . . . . . . Impact Corruptions . | . . . . . . Robots Melted . | . . . . . . Combat Hostiles . | . . . . . . Parts Melted 2 | . . . . . 2 Heat Transferred 1308 | . . 642 . . 666 Parts Sabotaged . | . . . . . . Parts Stolen . | . . . . . . Parts Stripped . | . . . . . . Power Chain Reactions . | . . . . . . Alert | -11 -10 -9 -9 -7 -6 ------- Run | Yrd Mat Mat Min Zio Pro Peak Influence 422 | . 15 422 23 . . Initial 23 | . . 1 23 . . Average 164 | . 3 192 23 . . Maximum Alert Level 2 | . . 2 . . . Low Security (%) 56 | 100 100 49 100 . . Level 1 34 | . . 40 . . . Level 2 8 | . . 10 . . . Level 3 . | . . . . . . Level 4 . | . . . . . . Level 5 . | . . . . . . High Security . | . . . . . . Max Security . | . . . . . . Squads Dispatched 2 | . . 2 . . . Investigation 1 | . . 1 . . . Extermination . | . . . . . . Reinforcement 1 | . . 1 . . . Assault . | . . . . . . Garrison . | . . . . . . Intercept . | . . . . . . Searches Triggered . | . . . . . . Construction Impeded . | . . . . . . Haulers Reinforced . | . . . . . . Active Scanning Responses . | . . . . . . Cargo Convoy Interrupts . | . . . . . . Stealth | -11 -10 -9 -9 -7 -6 --------- Run | Yrd Mat Mat Min Zio Pro Distress Signals 1 | . . 1 . . . Communications Jammed . | . . . . . . Distress Signals . | . . . . . . Times Spotted 24 | . 1 18 . . 5 Peak Tracking Total 6 | . 1 6 . . 3 Tactical Retreats 4 | . . 3 . . 1 Traps | -11 -10 -9 -9 -7 -6 ------- Run | Yrd Mat Mat Min Zio Pro Traps Triggered . | . . . . . . Indirectly . | . . . . . . Trap Hack Attempts . | . . . . . . Triggered . | . . . . . . Disarmed 3 | . . 3 . . . Reprogrammed . | . . . . . . Reused . | . . . . . . Traps Extracted . | . . . . . . Installed . | . . . . . . Triggered . | . . . . . . Machines | -11 -10 -9 -9 -7 -6 ---------- Run | Yrd Mat Mat Min Zio Pro Machines Disabled 1 | . . 1 . . . Max in Single Turn 1 | . . 1 . . . Machines Repaired . | . . . . . . Machines Dismantled . | . . . . . . Machines Sabotaged . | . . . . . . Overloaded Fab Kills . | . . . . . . Hacking | -11 -10 -9 -9 -7 -6 --------- Run | Yrd Mat Mat Min Zio Pro Machines Accessed 6 | . 1 5 . . . Terminals 5 | . 1 4 . . . Fabricators . | . . . . . . Repair Stations . | . . . . . . Recycling Units . | . . . . . . Scanalyzers 1 | . . 1 . . . Garrison Access . | . . . . . . Total Hacks 17 | . 4 13 . . . Successful 11 | . 4 7 . . . Failed 6 | . . 6 . . . Catastrophic 1 | . . 1 . . . Database Lockouts . | . . . . . . Manual 2 | . . 2 . . . Terminals 14 | . 4 10 . . . Fabricators . | . . . . . . Repair Stations . | . . . . . . Recycling Units . | . . . . . . Scanalyzers 3 | . . 3 . . . Garrison Access . | . . . . . . Terminal Hacks 9 | . 4 5 . . . Record 3 | . 1 2 . . . Prototype ID Bank 1 | . 1 . . . . Unreport Threat 3 | . 2 1 . . . Disarm Traps 1 | . . 1 . . . Registered Components 1 | . . 1 . . . Fabricator Hacks . | . . . . . . Repair Station Hacks . | . . . . . . Recycling Unit Hacks . | . . . . . . Scanalyzer 2 | . . 2 . . . Insert Component 1 | . . 1 . . . Analyze 1 | . . 1 . . . Garrison Access Hacks . | . . . . . . Unauthorized Hacks . | . . . . . . Terminals . | . . . . . . Fabricators . | . . . . . . Repair Stations . | . . . . . . Recycling Units . | . . . . . . Scanalyzers . | . . . . . . Garrison Access . | . . . . . . Data Cores Recovered . | . . . . . . Used . | . . . . . . Hacking Detections 5 | . 1 4 . . . Full Trace Events 1 | . . 1 . . . Feedback Events 1 | . . 1 . . . Corruption 1 | . . 1 . . . Feedback Blocked . | . . . . . . Robot Schematics Acquired 3 | . . . . 3 . Robots Built . | . . . . . . Authchips . | . . . . . . Time . | . . . . . . Total Robot Build Rating . | . . . . . . Part Schematics Acquired 15 | . . 1 . 14 . Parts Built . | . . . . . . Authchips . | . . . . . . Time . | . . . . . . Total Part Build Rating . | . . . . . . Parts Repaired . | . . . . . . Time . | . . . . . . Parts Recycled . | . . . . . . Recycled Matter . | . . . . . . Retrieved Matter . | . . . . . . Retrieved Components . | . . . . . . Parts Scanalyzed 1 | . . 1 . . . Part Schematics Acquired 1 | . . 1 . . . Parts Damaged . | . . . . . . Bothacking | -11 -10 -9 -9 -7 -6 ------------ Run | Yrd Mat Mat Min Zio Pro Used RIF Installer . | . . . . . . Robots Hacked . | . . . . . . Non-combat . | . . . . . . Combat . | . . . . . . Robot Hacks Applied . | . . . . . . Relay Couplers Released . | . . . . . . Fabnet Peak Effective % . | . . . . . . Robots Rewired . | . . . . . . Allies Hacked . | . . . . . . Hacks Repelled . | . . . . . . Allies | -11 -10 -9 -9 -7 -6 -------- Run | Yrd Mat Mat Min Zio Pro Total Allies 4 | . . . . 4 . Largest Group 4 | . . . . 4 . Highest-Rated Group 152 | . . . . 152 . Highest-Rated Ally 39 | . . . . 39 . Total Orders . | . . . . . . Ally Attacks . | . . . . . . Total Damage . | . . . . . . Kills . | . . . . . . Allies Corrupted . | . . . . . . Allies Melted . | . . . . . . Intel | -11 -10 -9 -9 -7 -6 ------- Run | Yrd Mat Mat Min Zio Pro Robot Analysis Total . | . . . . . . Derelict Logs Recovered 1 | . . . . 1 . Drone Launches . | . . . . . . Drone Recoveries . | . . . . . . Exploration | -11 -10 -9 -9 -7 -6 ------------- Run | Yrd Mat Mat Min Zio Pro Turns Passed 1643 | 34 59 558 3 749 240 Spaces Moved 1761 | 30 80 533 3 981 134 Core 249 | 1 . 6 3 220 19 Treads 74 | . . . . . 74 Legs . | . . . . . . Wheels 51 | 29 22 . . . . Hover 585 | . 58 527 . . . Flight 802 | . . . . 761 41 Fastest Speed 50 | 50 56 56 150 52 50 Average Speed 84 | 79 62 93 150 74 141 Slowest Speed 180 | 80 80 180 150 150 160 Overloaded Moves . | . . . . . . Propulsion Burnouts . | . . . . . . Robots Hopped . | . . . . . . Cave-ins Triggered . | . . . . . . Exploration Rate (%) 27 | 4 21 46 6 82 8 Regions Visited 5 Branch Regions 3 Pre-discovered Areas 2 | . . . . 2 . Known Exits Taken . | . . . . . . Unknown Exits Taken 5 | 1 1 1 1 1 . Scrap Searched 5 | . . . . 3 2 Spaces Dug . | . . . . . . Terrain Destroyed 64 | . . 64 . . . Melee . | . . . . . . Projectile . | . . . . . . AOE 64 | . . 64 . . . Terrain Rammed . | . . . . . . Walls Destroyed . | . . . . . . Machines Disabled . | . . . . . . Actions | -11 -10 -9 -9 -7 -6 --------- Run | Yrd Mat Mat Min Zio Pro Total 1862 | 40 87 566 2 1002 165 Wait 17 | . . 4 . . 13 Move 1756 | 29 79 532 2 980 134 Hop . | . . . . . . Pick Up 26 | 6 4 6 . 8 2 Fast Attach . | . . . . . . Attach 17 | 5 1 4 . 5 2 Detach . | . . . . . . Swap 8 | . 2 3 . 3 . Drop 10 | . 1 2 . 6 1 Fire 27 | . . 14 . . 13 Melee . | . . . . . . Ram 1 | . . 1 . . . Kick . | . . . . . . Crush . | . . . . . . Escape Stasis . | . . . . . . Rewire . | . . . . . . Trap . | . . . . . . Miscellaneous . | . . . . . . Route ------- -11/Scrapyard -10/Materials -9/Materials -9/Mines -7/Zion -6/Proximity Caves History --------- Turn | Location | Event 14 | -11/Scrapyard | Discovered new exit (range 15) 35 | -11/Scrapyard | Entered Materials 80 | -10/Materials | Discovered new exit (range 16) 94 | -10/Materials | Entered another Materials area 94 | -9/Materials | Evolved 2 slots: Utility x2 315 | -9/Materials | Build established: Mutant 636 | -9/Materials | Discovered new exit (range 11) 652 | -9/Materials | Entered Mines 653 | -9/Mines | A Derelict revealed a hidden shortcut to a safe place 655 | -9/Mines | Entered Zion 717 | -7/Zion | System corruption cleaned by Quarantine Array 793 | -7/Zion | Learned Factory terminal intel 1263 | -7/Zion | Imprinted 1265 | -7/Zion | Declared Zion's savior 1295 | -7/Zion | Build established: Derelict-Mutant 1391 | -7/Zion | Discovered new exit (range 16) 1404 | -7/Zion | Entered Proximity Caves 1540 | -6/Proximity Caves | Core integrity fell below 50% 1546 | -6/Proximity Caves | Lost 5 parts (1p1n2u1w) 1609 | -6/Proximity Caves | Core integrity fell below 20% 1644 | -6/Proximity Caves | Destroyed by H-66 Slayer with Gauss Rifle Last Messages --------------- 01515_ Penetrated by Slug. 01515_ Mak. Light Armor Plating destroyed. 01516_ Searching scrap... 01516_ Found Recalibrator. 01516_ Found 29 Matter. 01519_ Slug penetrates Wall. 01522_ Searching scrap... 01522_ Found Spk. Medium Treads. 01522_ Found 14 Matter. 01523_ Acquired Spk. Medium Treads. 01525_ Acquired 10 matter. 01539_ Penetrated by Slug. 01563_ Imp. Targeting Computer destroyed. 01571_ Penetrated by Slug. 01591_ Slug penetrates Wall. 01605_ Penetrated by Slug. 01613_ Acquired Recalibrator. 01615_ Acquired 10 matter. 01618_ Penetrated by Slug. 01618_ Slug penetrates Wall. Map ----- +----------------------------------------------------+ | ??????????????????????????# % #???????? | | ??????????????????????????# ####### [ ##???????? | | #########?????????????????# #?????## % ##????????? | | # #?????????????????# #??????# ###?????????? | | ### #?????????????????# #??????# #???????????? | | ##?# #?????????????????# #??????# ???????????? | | #### #?????????????????# #??????###???????????? | | ## #?????????????????# #????????????????????? | | ## ###?????????????????# #????????????????????? | | ## ## #???????????????????# #????????????????????? | | ?# ## #???????????????????# #????????????????????? | | ?# ## ###?????????????????# #????????????????????? | | ?# #?????????????????# #????????????????????? | | ?###### #?????????????????# #????????????????????? | | ??????# #?????????????????# #????????????????????? | | ??????# #?????????????????# #????????????????????? | | ??????# #???????????????### #????????????????????? | | ??????# #???????????????# #????????????????????? | | ??????# #???????????????# ###????????????????????? | | ??????# #???????????????# #??????????????????????? | | ??????# ###########?????# #??????????????????????? | | ??????# % #?????# #??????????????????????? | | ??????########### #?????# #??????????????????????? | | ??????????????### ####### #??????????????????????? | | ??????????????# ## #??????????????????????? | | ??????????????# % @#??????????????????????? | | ??????????????# " ## #??????????????????????? | | ??????????????# "" " ## #??????????????????????? | | ??????????????# """" ## #??????????????????????? | | ??????????????# "" ## #??????????????????????? | | ??????????????# "" ##h#######????????????????? | | ??????????????# """" h ?????????? | | ??????????????# "" ?????????? | | ??????????????# ########????????????? | | ??????????????###### ##???????????????????? | | ???????????????????##########????????????????????? | | ?????????????????????????????????????????????????? | | ?????????????????????????????????????????????????? | | ?????????????????????????????????????????????????? | | ?????????????????????????????????????????????????? | | ?????????????????????????????????????????????????? | | ?????????????????????????????????????????????????? | | ?????????????????????????????????????????????????? | | ?????????????????????????????????????????????????? | | ?????????????????????????????????????????????????? | | ?????????????????????????????????????????????????? | | ?????????????????????????????????????????????????? | | ?????????????????????????????????????????????????? | | ?????????????????????????????????????????????????? | | ?????????????????????????????????????????????????? | +----------------------------------------------------+ Best States ------------- Heat Dissipation 28 Energy Generation 10 Energy Capacity 125 Matter Stores 300 Matter Capacity 300 Sight Range 16 Terrain Scan Density 10 Additional Mass Support 6 Armor Coverage 300 Resistance: KI 20 Resistance: TH 20 Resistance: EX 20 Resistance: EM 20 Resistance: I 20 Resistance: S 20 Resistance: P 20 Evasion (%) 59 Targeting Accuracy 6 Recoil Reduction 1 Salvage Targeting 4 Offensive Hacking 21 Item Schematics ----------------- Adv. Beam Cannon | -9/Materials | Scanalyzed Corruption Screen | -7/Zion | Archive Imp. Trap Scanner | -7/Zion | Archive Adv. Terrain Scan Processor | -7/Zion | Archive Proton Cannon | -7/Zion | Archive Kinecellerator | -7/Zion | Archive Hyp. Gauss Rifle | -7/Zion | Archive Hyp. Coil Gun | -7/Zion | Archive Adv. Heat Sink | -7/Zion | Archive Hvy. Shock Bomb Launcher | -7/Zion | Archive Imp. Cooling System | -7/Zion | Archive Plasma Rifle | -7/Zion | Archive Mak. Leg | -7/Zion | Archive Lgt. Angular Momentum Engine | -7/Zion | Archive Mak. Terrain Scan Processor | -7/Zion | Archive Robot Schematics ------------------ T-07 Excavator | -7/Zion | Archive Y-45 Defender | -7/Zion | Archive O-24 Administrator | -7/Zion | Archive Fabricated ------------ Nothing Alien Tech Used ----------------- None Achievements -------------- None Challenges ------------ None Game ------ Seed CooledCombatCloak Manual? 0 Play Time 00:33:51 Cumulative 18.4 hours Start 2024.04.03 @ 17:56:33 End 2024.04.03 @ 18:30:41 Sessions 1 Manual Loads 0 Difficulty Adventurer Special Mode None Game No. 17 Rogue 0 Adventurer 17 Explorer 0 Win Type - Total 0 Types 0/0/0/0/0/0/0/0/0 Lore% 15 Gallery% 22 Achievement% 17 Wizard Run 0 Options --------- Layout 1 ASCII 0 Keyboard 0 Movement Mouse Keybinds 0 Fullscreen 2 Font 16/Tamsyn Map View 25x20 Zoom Use 100% Tactical HUD 1 Map Filters NONE Filters NONE Steam SD RUN: 085e23d6-e34e-443b-ae47-d70363a69562